Cogmind - Beta 16.1 @@@ ROGUE MODE // 2026.04.01 @ 10:25:37 Player: Satori Result: Self-destructed Performance ------------- Evolutions (9) 4500 Regions Visited (27) 5400 Robots Destroyed (243) 1215 Value Destroyed (8527) 8527 Prototype IDs (48) 960 Alien Tech Used (2) 400 Bonus (17914) 17914 TOTAL SCORE: 38916 Bonus ------- Triggered High Security 500 High Alert Combat Kills 2310 Follower Combat Kills 12483 Met Imprinter 300 Met Zhirov 300 Built Enhanced Grunts 300 A7 Reached Mainframe 300 Met R17 at Cetus 500 Met R17 at Research 2000 Friendly Fire -1079 Cogmind --------- Core Integrity 674/1600 Matter 545/700 Energy 16/100 System Corruption 20% Temperature Cool (0) Movement Core (1550) Ox30 Location -1/Command Parts ------- > --- POWER (3) -------- (None) > --- PROPULSION (4) --- (None) > --- UTILITY (12) ----- Advanced Cooling System Huge Storage Unit Advanced Matter Compressor Makeshift Transmission Jammer Thermal Barrier > --- WEAPON (6) ------- (None) > --- INVENTORY (25) --- Compact Particle Reactor Quantum Reactor Armored Wheel Centrium Wheel Advanced Matter Compressor (224) Advanced Matter Compressor (222) Long-range Terrain Scanner Seismic Detector Heavy Insulated Plating Advanced Point Defense System Hacking Drone Bay (1/1) Long-range Proton Cannon Matter Neutralizer Ragnarok Missile Launcher Multitool Enhanced Force Lance Peak State ------------ > --- POWER ------------ Hybrid Deuterium Engine Vortex Chain Reactor > --- PROPULSION ------- Armored Huge Wheel Centrium Wheel Centrium Wheel > --- UTILITY ---------- Huge Storage Unit Long-range Terrain Scanner Advanced Terrain Scan Processor Makeshift Transmission Jammer Advanced Phase Shifter Experimental Utility Shielding Layered Medium Armor Plating Centrium Medium Armor Plating Makeshift Ablative Armor Improved Powered Armor Improved Remote Shield Hacking Drone Bay > --- WEAPON ----------- Ragnarok Missile Launcher 1B-0RG's Assimilator > --- INVENTORY -------- Compact Particle Reactor Quantum Reactor Armored Wheel Armored Huge Wheel Centrium Wheel Advanced Cooling System Advanced Matter Compressor Advanced Matter Compressor Advanced Matter Compressor Seismic Detector Heavy Insulated Plating Thermal Barrier Advanced Force Field Advanced Point Defense System High-powered Tractor Beam Transdimensional Reconstructor Long-range Proton Cannon Matter Neutralizer Ragnarok Missile Launcher Multitool Enhanced Force Lance [Rating: 210] Favorites ----------- Power Hybrid Deuterium Engine Engine Hybrid Deuterium Engine Power Core Micro Nuclear Core Reactor Vortex Chain Reactor Propulsion Wheel Wheel Wheel Utility Huge Storage Unit Device Seismic Detector Storage Huge Storage Unit Processor Advanced Terrain Scan Processor Hackware Hacking Suite Protection Hardened Heavy Armor Plating Weapon 1B-0RG's Assimilator Energy Gun Advanced Beam Rifle Energy Cannon Cooled Particle Cannon Ballistic Gun Shotgun Ballistic Cannon Advanced Assault Cannon Launcher Ragnarok Missile Launcher Special Weapon Multitool Slashing Weapon Phasing Sabre Piercing Weapon Enhanced Force Lance Special Melee Weapon 1B-0RG's Assimilator Build | -11 -10 -10 -8 -7 -7 -7 -7 -6 -6 -6 -6 -6 -6 -5 -5 -5 -5 -4 -4 -4 -4 -4 -3 -3 -2 -1 -1 ------- Run | Yrd Mat Sub Mat Fac Low Low Zio Pro Fac Ext Cet Arc Hub Fac Upp Upp War Pro Fac Upp Upp Zhi Pro Res Res Acc Com Slots Evolved 18 | . . . 4 2 . . . . 2 . . . . 2 . . . . 2 . . . . 2 2 2 . Power 2 | . . . . . . . . . 1 . . . . . . . . . 1 . . . . . . . . Propulsion 2 | . . . 1 . . . . . . . . . . 1 . . . . . . . . . . . . . Utility 10 | . . . 1 1 . . . . . . . . . 1 . . . . 1 . . . . 2 2 2 . Weapon 4 | . . . 2 1 . . . . 1 . . . . . . . . . . . . . . . . . . Parts Attached 193 | 7 7 20 21 28 5 3 5 6 3 11 6 2 1 13 2 4 6 1 9 9 1 3 1 7 4 6 2 Power 15 | 1 1 2 2 3 1 . . . 1 . 1 . . . . . . . 1 1 . 1 . . . . . Engine 11 | 1 1 2 2 2 1 . . . 1 . . . . . . . . . . 1 . . . . . . . Core 1 | . . . . 1 . . . . . . . . . . . . . . . . . . . . . . . Reactor 3 | . . . . . . . . . . . 1 . . . . . . . 1 . . 1 . . . . . Propulsion 41 | 2 . 4 7 5 1 2 . . 1 6 1 . . 5 . . . . 3 1 . . . 2 . . 1 Treads . | . . . . . . . . . . . . . . . . . . . . . . . . . . . . Leg . | . . . . . . . . . . . . . . . . . . . . . . . . . . . . Wheel 41 | 2 . 4 7 5 1 2 . . 1 6 1 . . 5 . . . . 3 1 . . . 2 . . 1 Hover . | . . . . . . . . . . . . . . . . . . . . . . . . . . . . Flight . | . . . . . . . . . . . . . . . . . . . . . . . . . . . . Utility 89 | 2 3 4 5 11 2 . 3 3 . 4 4 1 1 7 1 4 6 1 5 6 1 1 1 3 4 5 1 Device 34 | 1 1 1 2 3 2 . 2 . . . 2 . . 3 . 1 3 1 1 3 1 . . 2 2 3 . Storage 17 | 1 2 1 . 2 . . . 2 . 3 . . . 2 1 1 . . 1 . . . . . 1 . . Processor 5 | . . . . . . . . . . . . . . 1 . 1 1 . 1 1 . . . . . . . Hackware 4 | . . . 1 . . . 1 . . . . . . 1 . . . . . . . . . 1 . . . Protection 29 | . . 2 2 6 . . . 1 . 1 2 1 1 . . 1 2 . 2 2 . 1 1 . 1 2 1 Artifact . | . . . . . . . . . . . . . . . . . . . . . . . . . . . . Weapon 48 | 2 3 10 7 9 1 1 2 3 1 1 . 1 . 1 1 . . . . 1 . 1 . 2 . 1 . Energy Gun 9 | 1 . 2 3 2 . . 1 . . . . . . . . . . . . . . . . . . . . Energy Cannon 9 | . . 3 2 1 . . . . 1 . . . . . . . . . . 1 . . . . . 1 . Ballistic Gun 13 | 1 1 5 2 4 . . . . . . . . . . . . . . . . . . . . . . . Ballistic Cannon 3 | . . . . 2 1 . . . . . . . . . . . . . . . . . . . . . . Launcher 5 | . 1 . . . . . . 2 . . . . . 1 1 . . . . . . . . . . . . Special Weapon 3 | . 1 . . . . . 1 . . . . . . . . . . . . . . 1 . . . . . Impact Weapon . | . . . . . . . . . . . . . . . . . . . . . . . . . . . . Slashing Weapon 2 | . . . . . . 1 . . . 1 . . . . . . . . . . . . . . . . . Piercing Weapon 2 | . . . . . . . . . . . . . . . . . . . . . . . . 2 . . . Special Melee Weapon 2 | . . . . . . . . 1 . . . 1 . . . . . . . . . . . . . . . Unidentified Prototypes 25 | . . . 3 2 . . 1 1 . . 4 . . 4 . . 4 . 1 1 . 3 . . . . 1 Corrupted Parts 1 | . . 1 . . . . . . . . . . . . . . . . . . . . . . . . . System Corruption 2 | . . 2 . . . . . . . . . . . . . . . . . . . . . . . . . Parts Lost 61 | . 1 9 3 14 . 4 . 4 1 3 1 . . . . 1 . . 2 2 . . . . . 2 14 Power 5 | . 1 1 . . . . . . . . . . . . . . . . . 1 . . . . . . 2 Propulsion 22 | . . 4 1 4 . 3 . 1 1 2 1 . . . . . . . . 1 . . . . . . 4 Utility 27 | . . 2 2 6 . 1 . 3 . 1 . . . . . 1 . . 2 . . . . . . 2 7 Weapon 7 | . . 2 . 4 . . . . . . . . . . . . . . . . . . . . . . 1 Highest Loss Streak 10 | . 1 4 2 4 . 4 . 3 1 2 1 . . . . 1 . . 1 1 . . . . . 1 10 To Critical Strikes . | . . . . . . . . . . . . . . . . . . . . . . . . . . . . Average Backups 21 | 1 13 18 19 20 20 16 19 20 20 22 22 23 22 22 24 23 23 23 23 24 25 24 25 23 23 22 19 Power 1 | . . 1 . 2 2 1 2 2 1 1 1 1 1 1 3 3 3 3 2 1 1 1 1 1 1 2 2 Propulsion 1 | . . . 1 1 . . . . . 1 . . . 1 3 3 3 3 3 2 2 2 2 2 3 3 2 Utility 11 | . 4 5 8 8 10 8 10 10 9 10 13 15 15 13 12 11 12 12 13 15 16 16 16 14 12 11 8 Weapon 5 | 1 6 7 6 4 4 3 4 5 9 8 7 6 5 5 5 5 4 4 4 4 5 4 3 3 4 4 4 Tool/Special . | . . . . . . . . . . . . . . . . . . . . . . . . . . . . Unused Backups 53 | . . 5 6 7 1 2 2 . 1 2 4 . 1 6 . . 2 . 4 . . 1 . 1 2 2 4 Power 7 | . . 1 . 1 . . . . 1 . . . . 1 . . 1 . . . . . . . . . 2 Propulsion 5 | . . . . 1 . . . . . . . . . 1 . . . . 2 . . . . . . . 1 Utility 24 | . . 2 4 2 . 2 1 . . 1 3 . 1 1 . . . . 2 . . . . 1 2 1 1 Weapon 15 | . . 1 2 3 1 . . . . 1 1 . . 3 . . 1 . . . . 1 . . . 1 . Tool/Special 2 | . . 1 . . . . 1 . . . . . . . . . . . . . . . . . . . . Average Slot Usage (%) 77 | . 99 98 82 96 99 79 82 79 61 70 73 73 71 68 70 69 69 70 67 67 68 68 68 68 68 73 71 Engine 7 | . 13 14 8 7 7 6 7 7 13 13 12 6 6 5 5 5 5 5 5 4 5 5 5 4 4 4 3 Reactor 2 | . . . . . . . . . . . . 6 6 5 5 5 5 5 4 5 5 5 5 4 4 4 3 Wheel 19 | . 28 27 24 22 23 14 15 12 8 17 20 20 20 21 23 23 23 23 20 21 21 21 21 16 13 12 12 Device 10 | . 14 12 8 12 13 9 10 4 5 5 . . 2 8 10 6 5 8 10 8 10 9 9 18 17 20 20 Storage 8 | . 14 14 8 7 7 6 7 16 13 13 12 13 10 7 5 5 5 5 5 5 5 5 5 4 4 4 6 Processor 1 | . . . . . . . . . . . . . . . . . . . . 4 5 5 5 4 4 4 . Protection 7 | . . 1 5 8 8 6 7 7 6 5 12 13 11 5 5 9 10 7 9 6 5 5 5 4 11 15 15 Energy Gun 4 | . 14 . 8 15 20 14 7 10 . . . . . . . . . . . . . . . . . . . Energy Cannon 2 | . . 12 10 4 2 . . . 5 2 . . . . . . . . 1 . . . 2 . . . 1 Ballistic Gun 1 | . 9 13 4 4 . . . . . . . . . . . . . . . . . . . . . . . Ballistic Cannon 2 | . . . . 9 14 14 12 10 . . . . . . . . . . . . . . . . . . . Slashing Weapon 2 | . . . . . . 4 7 4 . 3 5 6 6 4 4 4 5 4 3 4 4 5 2 1 . . . Special Melee Weapon 3 | . . . . . . . . 2 6 6 6 6 6 5 5 5 5 5 5 5 5 5 5 4 4 4 4 Peak Build Rating 210 | 7 11 23 43 58 49 45 49 86 97 105 114 112 117 130 127 127 133 133 150 158 157 155 161 172 189 210 209 Average Rating 99 | 5 10 18 40 46 46 37 40 56 94 98 104 109 112 115 122 122 127 127 144 151 151 151 153 166 181 200 201 On Entrance 100 | . 7 11 23 42 49 45 40 49 86 95 98 110 110 109 122 122 122 130 125 145 158 151 152 153 169 187 200 Avg Prop Armor Cover (%) 4 | . . 4 2 . . . . . . . . . . . . . . . . . . . . . . . . Naked Turns . | . . . . . . . . . . . . . . . . . . . . . . . . . . . . Heaviest Build 260 | 14 49 102 109 131 133 117 120 158 171 171 178 177 182 194 186 195 196 205 222 229 207 204 226 228 239 259 260 Greatest Support 60 | 26 26 40 50 40 30 30 26 26 28 44 44 44 44 54 44 44 44 44 54 56 56 56 56 60 60 60 60 Greatest Overweight (x) 16 | . 1 16 4 4 4 5 4 9 14 14 4 4 4 4 4 4 4 4 6 4 3 3 4 3 3 4 4 Average Overweight (x) 3 | . . 3 2 3 3 3 3 5 8 4 3 3 3 3 4 4 4 4 3 3 3 3 3 3 3 3 4 Largest Inventory Capacity 25 | 8 20 25 25 25 25 25 25 25 25 25 25 25 25 25 25 25 25 25 25 25 25 25 25 25 25 25 25 Average Capacity 24 | 7 15 22 25 25 25 23 25 25 25 25 25 25 25 25 25 25 25 25 25 25 25 25 25 25 25 25 25 Most Carried 25 | 4 17 25 25 25 25 25 25 25 24 25 25 25 25 25 25 25 25 25 25 25 25 25 25 25 25 25 25 Average Carried 23 | 2 13 21 23 24 24 21 24 24 22 24 24 25 24 24 25 24 24 25 24 24 25 24 25 23 24 24 20 Final Capacity 25 | 8 20 25 25 25 25 25 25 25 25 25 25 25 25 25 25 25 25 25 25 25 25 25 25 25 25 25 25 Final Carried 25 | 4 17 22 25 25 25 24 25 25 23 24 25 25 25 25 25 25 25 25 23 25 25 25 25 25 25 24 17 Class Distribution -------------------- 42% | Mutant 20% | Tank 14% | Commander-Mutant 9% | Scavenger-Mutant 6% | Scientist-Mutant 4% | Scavenger-Tank Dominant Class ---------------- Mutant | -10/Materials Scavenger-Mutant | -10/Subcaves Scavenger-Tank | -8/Materials Tank | -7/Factory Tank | -7/Lower Caves Tank | -7/Lower Caves Tank | -7/Zion Tank | -6/Proximity Caves Mutant | -6/Factory Commander-Mutant | -6/Extension Commander-Mutant | -6/Cetus Commander-Mutant | -6/Archives Commander-Mutant | -6/Hub_04(d) Commander-Mutant | -5/Factory Mutant | -5/Upper Caves Scavenger-Mutant | -5/Upper Caves Scavenger-Mutant | -5/Warlord Scavenger-Mutant | -4/Proximity Caves Mutant | -4/Factory Scientist-Mutant | -4/Upper Caves Mutant | -4/Upper Caves Mutant | -4/Zhirov Scientist-Mutant | -3/Proximity Caves Mutant | -3/Research Mutant | -2/Research Mutant | -1/Access Mutant | -1/Command Resources | -11 -10 -10 -8 -7 -7 -7 -7 -6 -6 -6 -6 -6 -6 -5 -5 -5 -5 -4 -4 -4 -4 -4 -3 -3 -2 -1 -1 ----------- Run | Yrd Mat Sub Mat Fac Low Low Zio Pro Fac Ext Cet Arc Hub Fac Upp Upp War Pro Fac Upp Upp Zhi Pro Res Res Acc Com Matter Collected 30093 | 278 130 515 906 1113 255 867 . 499 582 2346 500 381 127 3264 786 1531 . 277 2135 1471 217 245 1079 943 1835 5306 2505 Remotely 12527 | . . . . . 17 66 . . 199 . . 108 . 2121 726 287 . . 1203 429 . . . 535 840 3716 2280 Salvage Created 10403 | 109 249 411 1732 1790 160 235 . 269 147 827 58 102 . 313 73 86 . . 338 422 35 243 108 689 127 1102 778 Parts 447 | 16 20 32 86 89 9 4 . 11 2 17 3 7 . 10 4 6 . . 10 9 2 3 6 15 14 31 41 Haulers Intercepted 7 | . 1 . 2 1 . . . . . . . . . . . . . . 1 1 . . . 1 . . . Recyclers Shooed 11 | 1 . . 1 . . . . . 1 1 . . . . . . . . 1 . . . . 1 . 5 . Parts Field Recycled . | . . . . . . . . . . . . . . . . . . . . . . . . . . . . Retrieved Matter . | . . . . . . . . . . . . . . . . . . . . . . . . . . . . Parts Self-Destructed 138 | . . 15 . . 7 . . 14 . . . . . . 21 14 . 6 . 24 2 1 34 . . . . Prevented 19 | . . . . . . . . . . . . . . . . 8 . 2 . 8 . . 1 . . . . Parts Restored . | . . . . . . . . . . . . . . . . . . . . . . . . . . . . Kills | -11 -10 -10 -8 -7 -7 -7 -7 -6 -6 -6 -6 -6 -6 -5 -5 -5 -5 -4 -4 -4 -4 -4 -3 -3 -2 -1 -1 ------- Run | Yrd Mat Sub Mat Fac Low Low Zio Pro Fac Ext Cet Arc Hub Fac Upp Upp War Pro Fac Upp Upp Zhi Pro Res Res Acc Com Combat Hostiles Destroyed 158 | . 8 12 27 29 4 1 . 15 . . . . . . 4 4 . . 1 4 . . 2 6 7 9 25 Melee 4 | . . . . . . . . . . . . . . . . . . . 1 . . . . . . 2 1 Guns 42 | . 5 8 12 16 1 . . . . . . . . . . . . . . . . . . . . . . Cannons 31 | . . 4 12 10 3 1 . 1 . . . . . . . . . . . . . . . . . . . AOE 75 | . 3 . . . . . . 14 . . . . . . 4 4 . . . 4 . . 2 6 7 7 24 Classes Destroyed 24 | 2 6 1 4 1 1 2 . 1 . . . . . . . . . . . . . . . . . 2 4 Worker 17 | . . . 1 7 . . . . . . . . . 3 . . . . . . . . . 5 . 1 . Builder 4 | . 1 . 2 . . . . . . . . . . . . . . . . . . . . . . 1 . Tunneler 8 | 3 . . 1 2 . . . . . 1 . . . . . . . . . . . . . . 1 . . Hauler 7 | . 1 . 2 1 . . . . . . . . . . . . . . 1 1 . . . 1 . . . Recycler 27 | 1 . . 2 5 . . . . 1 6 . . . 2 . . . . 2 . . . . 3 . 5 . Minesweeper 4 | . . . . . 1 . . 1 . . . . . . . 1 . . . . 1 . . . . . . Mechanic 3 | . . . . . . . . . . . . . . . . . . . . . . . . . . 1 2 Operator 6 | . 1 . 1 . . . . . . . . 3 . . . . . . . . . . . . 1 . . Drone 2 | . . . . . . . . 2 . . . . . . . . . . . . . . . . . . . Watcher 5 | . 1 . . 2 . . . . . . . . . . . . . . . . . . . . . 1 1 Swarmer 59 | . 6 3 . 12 4 . . 5 . . . . . . 4 4 . . 1 4 . . . 3 7 . 6 Cutter 4 | . . . . . . . . . . . . . . . . . . . . . . . . . . . 4 Saboteur 1 | . . . . . . . . . . . . . . . . . . . . . . . . . . . 1 Grunt 37 | . 2 . 16 2 . . . 6 . . . . . . . . . . . . . . . 3 . 2 6 Brawler 4 | . . . 1 . . . . . . . . . . . . . . . . . . . . . . 1 2 Duelist 1 | . . . . . . . . . . . . . . . . . . . . . . . . . . 1 . Protector 2 | . . . . . . . . . . . . . . . . . . . . . . . . . . . 2 Sentry 15 | . . . 8 6 . . . 1 . . . . . . . . . . . . . . . . . . . Hunter 13 | . . . 2 2 . . . . . . . . . . . . . . . . . . 2 . . 3 4 Programmer 11 | . . . . 7 . . . 1 . . . . . . . . . . . . . . . . . 2 1 Behemoth 1 | . . . . . . 1 . . . . . . . . . . . . . . . . . . . . . Investigator 1 | . . . . . . . . . . . . . . . . . . . . . . . . . . . 1 Subdweller 9 | . . 9 . . . . . . . . . . . . . . . . . . . . . . . . . Decomposer 8 | . . . . . 2 3 . . . . . . . . . 1 . . . 2 . . . . . . . Packrat 1 | . . . . . . 1 . . . . . . . . . . . . . . . . . . . . . Samaritan 3 | . . . . . . 2 . . . . . . . . 1 . . . . . . . . . . . . Wasp 1 | . . . . . . . . 1 . . . . . . . . . . . . . . . . . . . Best Kill Streak 14 | 2 4 3 4 8 4 1 . 12 1 2 . 3 . 1 4 2 . . 1 4 1 . 1 6 5 7 14 Combat Bots Only 14 | . 3 3 4 7 4 1 . 12 . . . . . . 4 2 . . 1 4 . . 1 4 5 4 14 Max Kills in Single Turn 7 | 1 3 1 2 3 1 1 . 3 1 1 1 1 . 1 2 2 . . 1 4 1 . 1 4 5 4 7 Gunslinging 2 | . . . . 2 . . . . . . . . . . . . . . . . . . . . . . . Exploded 7 | . 3 . . . . . . 3 . . . . . . 2 2 . . . 4 . . 1 3 5 4 7 Melee 1 | . . . . . . . . . . . . . . . . . . . 1 . . . . . . 1 1 Uniques/NPCs Destroyed 1 | . . . . . . . . . . . 1 . . . . . . . . . . . . . . . . A7 (-6/Cetus) Combat | -11 -10 -10 -8 -7 -7 -7 -7 -6 -6 -6 -6 -6 -6 -5 -5 -5 -5 -4 -4 -4 -4 -4 -3 -3 -2 -1 -1 -------- Run | Yrd Mat Sub Mat Fac Low Low Zio Pro Fac Ext Cet Arc Hub Fac Upp Upp War Pro Fac Upp Upp Zhi Pro Res Res Acc Com Hostile Shots Fired 1278 | . 37 58 86 255 13 24 . 47 11 56 6 . 21 58 22 30 . 3 68 20 . . 43 18 52 128 222 Missed 443 | . 11 14 23 80 1 9 . 20 4 18 1 . 10 24 6 12 . . 26 5 . . 20 5 15 60 79 Intercepted 3 | . . . . . . . . . . . . . . . . . . . . . . . . . . 3 . Hits 835 | . 26 44 63 175 12 15 . 27 7 38 5 . 11 34 16 18 . 3 42 15 . . 23 13 37 68 143 Melee 8 | . . . 1 . 2 . . . . . . . . . . . . . . . . . . . . . 5 Projectile 827 | . 26 44 62 175 10 15 . 27 7 38 5 . 11 34 16 18 . 3 42 15 . . 23 13 37 68 138 AOE 13 | . . . . 2 . . . . . . . . . 1 . . . . 2 . . . . . . 7 1 Critical Strikes 42 | . . 4 3 5 . 1 . 2 1 . 1 . 1 1 . . . . . 3 . . 1 . . 7 12 Actively Blocked 1 | . . . . 1 . . . . . . . . . . . . . . . . . . . . . . . Damage Taken 15202 | . 218 940 989 2161 150 390 . 589 172 506 220 . 134 687 164 238 . 69 728 387 . . 331 129 803 1950 3247 Core 2472 | . 58 148 119 343 18 60 . 118 60 78 . . 27 153 30 49 . . 83 103 . . 58 11 105 225 626 Absorbed by Shields 2256 | . . . . 12 . . . . . . 29 . . 154 59 80 . 21 51 17 . . 169 134 221 848 461 Redirected to Shielding 361 | . . . . 202 . . . . . . . . . . . . . . . . . . . . 16 143 . Ignored by Resistances 326 | . . . . 29 . . . . . . . . . 62 . 7 . . . . . . 19 . . 5 204 Regen/Repaired (Parts) 1429 | . . . . . . . 112 19 37 132 27 26 16 56 24 13 343 . 45 109 . . 61 . 114 190 105 Core Remaining (%) 71 | 100 . 17 78 . . . . 23 . . . . 80 . . . . 76 . . . . 78 99 92 . . Volleys Fired 449 | 8 53 53 68 127 9 15 . 19 4 7 1 . . 2 2 2 1 . 17 5 3 . 7 4 8 23 11 Largest 5 | 2 2 2 3 5 4 5 . 2 1 1 1 . . 1 1 1 1 . 1 1 1 . 1 1 1 1 1 Hottest 254 | 70 150 160 175 226 199 254 . 142 30 30 90 . . 30 70 70 90 . 30 81 30 . 81 70 81 105 70 Shots Fired 900 | 16 73 89 192 323 31 48 . 30 4 7 1 . . 2 2 2 1 . 17 5 3 . 7 4 8 23 12 Gun 462 | 16 39 50 108 199 18 22 . 10 . . . . . . . . . . . . . . . . . . . Cannon 341 | . . 31 84 124 13 26 . 4 4 7 1 . . 2 . . 1 . 17 4 3 . 3 . 1 16 . Launcher 56 | . 1 . . . . . . 16 . . . . . . 2 2 . . . 1 . . 4 4 7 7 12 Special 41 | . 33 8 . . . . . . . . . . . . . . . . . . . . . . . . . Kinetic 242 | 8 19 39 40 93 13 26 . 4 . . . . . . . . . . . . . . . . . . . Thermal 577 | 8 53 39 152 230 18 22 . 10 4 7 1 . . 2 . . 1 . 17 . 3 . . . . 10 . Explosive 56 | . 1 . . . . . . 16 . . . . . . 2 2 . . . 1 . . 4 4 7 7 12 Electromagnetic 25 | . . 11 . . . . . . . . . . . . . . . . . 4 . . 3 . 1 6 . Robot Hit Streak 21 | 4 9 13 21 17 4 4 . 10 8 4 . . . . . 1 . . . 5 . . 7 2 1 2 5 Robot Miss Streak 4 | 3 3 4 4 4 3 2 . 2 . 1 . . . . 1 . . . . . . . 2 1 2 2 1 Penetration Max 1 | . . . . 1 . . . . . . . . . . . . . . . . . . . . . . . Secondary Targets 5 | . 2 1 . 2 . . . . . . . . . . . . . . . . . . . . . . . Max Gunslinging Chain 2 | . 1 1 . 2 . . . . . . . . . . . . . . . . . . . . . . . Shots Hit Robots 552 | 9 26 50 117 171 12 27 . 22 3 15 2 5 . 7 2 4 . . 13 12 1 4 2 15 1 23 9 Core Hits 366 | 6 17 20 51 66 8 10 . 34 1 6 2 2 . 3 4 4 . . 3 10 1 1 3 15 9 25 65 Critical Kills 5 | . . 1 3 1 . . . . . . . . . . . . . . . . . . . . . . . Critical Parts Destroyed 1 | . . . 1 . . . . . . . . . . . . . . . . . . . . . . . . Critical Strikes 37 | . 1 3 10 15 . 2 . . . . . . . . . 1 . . . . . . . 1 . 3 1 Burn 17 | . 1 . 6 9 . 1 . . . . . . . . . . . . . . . . . . . . . Meltdown 4 | . . . 3 1 . . . . . . . . . . . . . . . . . . . . . . . Destroy 3 | . . 1 1 1 . . . . . . . . . . . . . . . . . . . . . . . Blast 5 | . . . . 4 . 1 . . . . . . . . . . . . . . . . . . . . . Corrupt 2 | . . 2 . . . . . . . . . . . . . . . . . . . . . . . . . Sever 2 | . . . . . . . . . . . . . . . . 1 . . . . . . . 1 . . . Impale 4 | . . . . . . . . . . . . . . . . . . . . . . . . . . 3 1 Melee Attacks 156 | . . . . . . 3 1 2 . 15 2 6 6 9 3 3 . . 22 9 3 4 . 21 5 36 6 Impact . | . . . . . . . . . . . . . . . . . . . . . . . . . . . . Slashing 106 | . . . . . . 3 1 2 . 15 2 5 6 9 3 3 . . 22 9 3 4 . 19 . . . Piercing 49 | . . . . . . . . . . . . . . . . . . . . . . . . 2 5 36 6 Sneak Attacks 53 | . . . . . . 3 . 1 . 7 2 5 . 6 2 2 . . 6 3 1 . . 5 . 10 . Combat Hostiles . | . . . . . . . . . . . . . . . . . . . . . . . . . . . . Follow-up Attacks . | . . . . . . . . . . . . . . . . . . . . . . . . . . . . Damage Inflicted 36623 | 96 431 915 3518 4398 295 782 . 2314 82 881 123 387 . 546 835 860 . . 799 1224 70 386 655 2740 1661 4393 8232 Guns 5802 | 96 308 635 1405 2770 158 255 . 175 . . . . . . . . . . . . . . . . . . . Cannons 5056 | . . 280 2113 1628 137 339 . 132 82 109 . . . . . . . . . 86 . . 23 . 43 84 . Explosions 19267 | . 99 . . . . . . 1945 . . . . . . 665 610 . . . 528 . . 632 1918 1618 3092 8160 Melee 6474 | . . . . . . 188 . 62 . 772 123 387 . 546 170 250 . . 799 610 70 386 . 822 . 1217 72 Ramming . | . . . . . . . . . . . . . . . . . . . . . . . . . . . . Kinetic 2958 | 44 131 547 443 1185 137 339 . 132 . . . . . . . . . . . . . . . . . . . Thermal 7600 | 52 201 280 3075 3213 158 255 . 175 82 109 . . . . . . . . . . . . . . . . . Explosive 19267 | . 99 . . . . . . 1945 . . . . . . 665 610 . . . 528 . . 632 1918 1618 3092 8160 Electromagnetic 324 | . . 88 . . . . . . . . . . . . . . . . . 86 . . 23 . 43 84 . Impact . | . . . . . . . . . . . . . . . . . . . . . . . . . . . . Slashing 5071 | . . . . . . 188 . 62 . 772 123 387 . 546 170 250 . . 799 610 70 386 . 708 . . . Piercing 1403 | . . . . . . . . . . . . . . . . . . . . . . . . 114 . 1217 72 Highest Corruption 20 | . . 2 . 6 6 6 6 1 . . . . . 4 4 4 4 . 2 2 2 2 2 . 4 13 20 Average Corruption 3 | . . 2 . 3 6 6 6 1 . . . . . 3 4 4 4 . 1 2 2 2 2 . 3 5 14 Corruption Purged . | . . . . . . . . . . . . . . . . . . . . . . . . . . . . Corruption Blocked . | . . . . . . . . . . . . . . . . . . . . . . . . . . . . Effects 269 | . . 28 . 41 16 25 4 1 . . . . . 6 16 19 3 . 7 17 10 3 12 . 8 36 17 Message Errors 65 | . . 6 . 10 2 5 2 . . . . . . 2 4 6 . . 1 5 5 . 2 . 2 6 7 Matter Fused 73 | . . 7 . 9 5 8 . . . . . . . 2 5 3 2 . 3 4 2 1 5 . 2 14 1 Heat Flow Errors 30 | . . 4 . 4 . 3 . . . . . . . . 1 2 1 . 2 3 . . 3 . 2 5 . Energy Discharges 29 | . . 2 . 4 2 3 1 . . . . . . 1 2 1 . . . 1 2 2 1 . . 6 1 Parts Rejected 2 | . . . . 1 . . . . . . . . . . . . . . . . . . . . . 1 . Parts Fused 1 | . . . . . . . . . . . . . . . . . . . . . . . . . . . 1 Data Loss (minor) 31 | . . 6 . 6 . 1 1 1 . . . . . . 4 4 . . 1 . . . . . 1 2 4 Data Loss (major) 15 | . . . . 3 1 2 . . . . . . . . . 2 . . . 2 1 . 1 . 1 . 2 Misfires 12 | . . 2 . 2 4 3 . . . . . . . . . . . . . . . . . . . . 1 Alerts 8 | . . 1 . . 1 . . . . . . . . 1 . 1 . . . 2 . . . . . 2 . Weapon Failures 3 | . . . . 2 1 . . . . . . . . . . . . . . . . . . . . . . Overload Shots 2 | . . . . . . . . . . . 1 . . . . . 1 . . . . . . . . . . Overflow Damage 2986 | . . . 88 79 . 147 . 109 24 206 . 65 . 128 152 213 . . 177 180 . 242 17 272 17 595 275 Projectiles 223 | . . . 88 79 . 24 . . 24 . . . . . . . . . . . . . . . 8 . . Explosions 1081 | . . . . . . . . 87 . . . . . . 97 128 . . . 68 . . 17 122 9 278 275 Melee 1682 | . . . . . . 123 . 22 . 206 . 65 . 128 55 85 . . 177 112 . 242 . 150 . 317 . Knockbacks 3 | . . . . 1 . . . 2 . . . . . . . . . . . . . . . . . . . Impact . | . . . . . . . . . . . . . . . . . . . . . . . . . . . . Kinetic 3 | . . . . 1 . . . 2 . . . . . . . . . . . . . . . . . . . Secondary . | . . . . . . . . . . . . . . . . . . . . . . . . . . . . Self-Inflicted Damage 88 | . . . . . . . . 88 . . . . . . . . . . . . . . . . . . . Shots 2 | . . . . . . . . 2 . . . . . . . . . . . . . . . . . . . Rammed . | . . . . . . . . . . . . . . . . . . . . . . . . . . . . Targets Rammed . | . . . . . . . . . . . . . . . . . . . . . . . . . . . . Kicked . | . . . . . . . . . . . . . . . . . . . . . . . . . . . . Crushed . | . . . . . . . . . . . . . . . . . . . . . . . . . . . . Highest Temperature 406 | 90 59 237 240 325 292 406 . 326 . 5 50 . . . 100 275 160 . 251 280 . . 124 . 195 200 . Average Temperature 84 | 36 21 53 40 93 100 172 . 96 . 5 28 . . . 45 96 66 . 103 107 . . 34 . 89 46 . Received Heat Transfer 1601 | . 15 355 369 126 . 60 . 99 27 114 13 . 18 86 27 48 . 6 21 33 . . 13 20 6 29 116 Effects 2 | . . . . 1 . 1 . . . . . . . . . . . . . . . . . . . . . Shutdowns 1 | . . . . . . 1 . . . . . . . . . . . . . . . . . . . . . Energy Bleed 1 | . . . . 1 . . . . . . . . . . . . . . . . . . . . . . . Siege Activations . | . . . . . . . . . . . . . . . . . . . . . . . . . . . . Martial Activations . | . . . . . . . . . . . . . . . . . . . . . . . . . . . . Shielding Activations . | . . . . . . . . . . . . . . . . . . . . . . . . . . . . Robots Disrupted . | . . . . . . . . . . . . . . . . . . . . . . . . . . . . Combat Hostiles . | . . . . . . . . . . . . . . . . . . . . . . . . . . . . Robots Corrupted . | . . . . . . . . . . . . . . . . . . . . . . . . . . . . Combat Hostiles . | . . . . . . . . . . . . . . . . . . . . . . . . . . . . Parts Fried 2 | . . 1 . . . . . . . . . . . . . . . . . . . . . . 1 . . Impact Corruptions . | . . . . . . . . . . . . . . . . . . . . . . . . . . . . Robots Melted 6 | . . . 3 3 . . . . . . . . . . . . . . . . . . . . . . . Combat Hostiles 6 | . . . 3 3 . . . . . . . . . . . . . . . . . . . . . . . Parts Melted 24 | . . . 14 8 1 1 . . . . . . . . . . . . . . . . . . . . . Heat Transferred 9929 | 148 642 370 2812 4588 296 518 . 296 111 148 . . . . . . . . . . . . . . . . . Parts Sabotaged 1 | . . . . . . . . . . . . . . . . . . . . . . . . . . . 1 Parts Stolen 2 | . . . . . 2 . . . . . . . . . . . . . . . . . . . . . . Parts Stripped . | . . . . . . . . . . . . . . . . . . . . . . . . . . . . Power Chain Reactions . | . . . . . . . . . . . . . . . . . . . . . . . . . . . . Alert | -11 -10 -10 -8 -7 -7 -7 -7 -6 -6 -6 -6 -6 -6 -5 -5 -5 -5 -4 -4 -4 -4 -4 -3 -3 -2 -1 -1 ------- Run | Yrd Mat Sub Mat Fac Low Low Zio Pro Fac Ext Cet Arc Hub Fac Upp Upp War Pro Fac Upp Upp Zhi Pro Res Res Acc Com Maximum Alert Level 5 | . . . 1 2 . . . . 2 3 2 1 2 4 . . . . 3 . . . . 2 3 5 5 Low Security (%) 30 | 100 100 . 50 26 . . . . 9 46 . 37 38 28 . . . . 54 . . . . 18 . . . Level 1 28 | . . . 49 39 . . . . 82 5 . 62 47 33 . . . . 23 . . . . 32 34 . . Level 2 22 | . . . . 33 . . . . 7 35 100 . 14 12 . . . . 6 . . . . 48 26 15 . Level 3 9 | . . . . . . . . . . 11 . . . 10 . . . . 15 . . . . . 38 32 . Level 4 4 | . . . . . . . . . . . . . . 15 . . . . . . . . . . . 30 . Level 5 2 | . . . . . . . . . . . . . . . . . . . . . . . . . . 22 9 High Security 2 | . . . . . . . . . . . . . . . . . . . . . . . . . . . 90 Max Security . | . . . . . . . . . . . . . . . . . . . . . . . . . . . . Peak Influence 2985 | 5 126 . 387 520 . . . . 411 776 580 382 438 1510 . . . . 791 . . . . 585 1004 2647 2985 Initial 1683 | . 3 . 27 172 . . . . 411 147 429 192 35 191 . . . . 171 . . . . 135 292 591 1683 Average 468 | 2 31 . 196 324 . . . . 304 328 500 241 223 481 . . . . 275 . . . . 394 580 1253 2092 Influence Increases 19145 | 20 252 70 880 1170 95 30 . 366 617 1377 381 220 677 2191 468 384 . 203 1258 421 8 10 551 952 1852 3002 1690 Destroy 0b10 Robot/C 8100 | . 160 60 540 580 80 20 . 320 120 580 160 80 220 760 260 200 . 100 440 240 . . 300 300 580 1080 920 Destroy 0b10 Robot/NC 735 | 20 20 . 45 85 5 . . 15 5 50 10 15 15 80 . 5 . 10 55 10 5 10 . 75 50 120 30 Destroy Leader 1482 | . 34 10 154 206 10 10 . 20 10 74 . . 76 150 30 30 . 10 130 20 . . 40 58 120 210 80 Allied During Kill 5788 | . . . . . . . . 11 30 555 170 95 307 954 178 149 . 83 404 151 3 . 211 393 686 1112 296 Successful Hack 260 | . 8 . 24 58 . . . . . 44 . . . 40 . . . . 15 . . . . 36 35 . . Select Force Hacks 90 | . . . 30 60 . . . . . . . . . . . . . . . . . . . . . . . Disable Machine 390 | . . . . 105 . . . . . 15 15 30 15 105 . . . . 30 . . . . . 30 30 15 Anti-Garrison Action 150 | . . . . . . . . . 150 . . . . . . . . . . . . . . . . . . Destroy Structure 1445 | . 30 . 27 46 . . . . 2 29 26 . 29 102 . . . . 34 . . . . 90 336 390 304 Advance Influence 450 | . . . . . . . . . 300 . . . . . . . . . 150 . . . . . . . . Partial Spotted 60 | . . . 15 . . . . . . . . . 15 . . . . . . . . . . . 15 15 . Lose Combat Pursuer 195 | . . . 45 30 . . . . . 30 . . . . . . . . . . . . . . . 45 45 Influence Decreases 16222 | 15 219 54 555 1037 484 153 . 189 494 909 667 600 389 1167 926 562 778 168 532 889 287 24 351 631 1387 1357 1398 Entered New Map 5072 | . 2 19 27 207 190 24 . . 66 153 339 290 67 199 524 182 778 . 14 283 57 14 . 65 229 395 948 Time Decay 7991 | 15 207 16 498 690 294 99 . 159 238 506 278 310 302 538 362 350 . 168 458 506 230 10 331 416 458 542 10 Search Patrol Dispatched 100 | . . . . . . . . . 100 . . . . . . . . . . . . . . . . . . Lost Part 519 | . 10 19 30 140 . 30 . 30 10 30 10 . . . . 10 . . 20 20 . . . . . 20 140 Lost Ally 1490 | . . . . . . . . . 80 220 40 . 20 280 40 20 . . 40 80 . . 20 . 100 250 300 Purge Threat 1050 | . . . . . . . . . . . . . . 150 . . . . . . . . . 150 600 150 . Squads Dispatched 81 | . . . 4 18 . . . 1 4 2 . . 3 9 . . . . 5 . . . . 5 4 12 14 Investigation 15 | . . . 1 4 . . . 1 2 2 . . 1 1 . . . . . . . . . 2 . 1 . Extermination 17 | . . . . 6 . . . . . . . . 1 2 . . . . 2 . . . . . 2 4 . Reinforcement 14 | . . . 2 2 . . . . . . . . 1 1 . . . . 3 . . . . 3 . 2 . Assault 27 | . . . . . . . . . 2 . . . . 4 . . . . . . . . . . 2 5 14 Garrison 8 | . . . 1 6 . . . . . . . . . 1 . . . . . . . . . . . . . Intercept . | . . . . . . . . . . . . . . . . . . . . . . . . . . . . Searches Triggered 1 | . . . . . . . . . 1 . . . . . . . . . . . . . . . . . . Construction Impeded . | . . . . . . . . . . . . . . . . . . . . . . . . . . . . Haulers Reinforced 3 | . . . . 1 . . . . . . . . . 1 . . . . . . . . . . . 1 . Active Scanning Responses . | . . . . . . . . . . . . . . . . . . . . . . . . . . . . Cargo Convoy Interrupts 1 | . . . . . . . . . . . . . . 1 . . . . . . . . . . . . . Stealth | -11 -10 -10 -8 -7 -7 -7 -7 -6 -6 -6 -6 -6 -6 -5 -5 -5 -5 -4 -4 -4 -4 -4 -3 -3 -2 -1 -1 --------- Run | Yrd Mat Sub Mat Fac Low Low Zio Pro Fac Ext Cet Arc Hub Fac Upp Upp War Pro Fac Upp Upp Zhi Pro Res Res Acc Com Distress Signals 32 | . 1 . 5 3 . . . . . 2 2 . 2 1 . . . . 5 . . . . 3 1 4 3 Communications Jammed 205 | . . . . . . . . . . . . . . . . . . . . . . . . . . 62 143 Distress Signals 200 | . . . . . . . . . . . . . . . . . . . . . . . . . . 57 143 Times Spotted 604 | . 12 12 35 38 6 1 . 21 11 30 10 3 15 50 14 12 . 5 34 12 . . 14 21 30 58 160 Peak Tracking Total 130 | . 4 3 5 5 4 1 . 7 4 6 5 2 5 11 3 4 . 5 10 5 . . 5 6 5 7 130 Tactical Retreats 12 | . . . 2 2 . . . . . 2 . . . . . . . . . . . . . . . 3 3 Traps | -11 -10 -10 -8 -7 -7 -7 -7 -6 -6 -6 -6 -6 -6 -5 -5 -5 -5 -4 -4 -4 -4 -4 -3 -3 -2 -1 -1 ------- Run | Yrd Mat Sub Mat Fac Low Low Zio Pro Fac Ext Cet Arc Hub Fac Upp Upp War Pro Fac Upp Upp Zhi Pro Res Res Acc Com Traps Triggered 7 | . 1 2 . 1 . . . . 1 1 . . . . . . . . . . . . . . 1 . . Indirectly . | . . . . . . . . . . . . . . . . . . . . . . . . . . . . Trap Hack Attempts . | . . . . . . . . . . . . . . . . . . . . . . . . . . . . Triggered . | . . . . . . . . . . . . . . . . . . . . . . . . . . . . Disarmed . | . . . . . . . . . . . . . . . . . . . . . . . . . . . . Reprogrammed . | . . . . . . . . . . . . . . . . . . . . . . . . . . . . Reused 1 | . . . . . . . . 1 . . . . . . . . . . . . . . . . . . . Traps Extracted . | . . . . . . . . . . . . . . . . . . . . . . . . . . . . Installed 6 | . . . . . . . . 4 . . . . . . . . . . . . 2 . . . . . . Triggered 1 | . . . . . . . . 1 . . . . . . . . . . . . . . . . . . . Most Traps Carried 1 | . . . . . 1 1 1 1 1 1 1 1 1 1 . . . . . . . . . . . . . Machines | -11 -10 -10 -8 -7 -7 -7 -7 -6 -6 -6 -6 -6 -6 -5 -5 -5 -5 -4 -4 -4 -4 -4 -3 -3 -2 -1 -1 ---------- Run | Yrd Mat Sub Mat Fac Low Low Zio Pro Fac Ext Cet Arc Hub Fac Upp Upp War Pro Fac Upp Upp Zhi Pro Res Res Acc Com Machines Disabled 36 | . . 1 . 7 1 . . 4 1 2 1 2 1 7 1 . 1 . 2 . . . . . 2 2 1 Max in Single Turn 1 | . . 1 . 1 1 . . 1 . . 1 . . 1 1 . 1 . . . . . . . 1 1 . Garrison Access 3 | . . . 1 . . . . . 1 . . . . . . . . . . . . . . . 1 . . Energy Cycler 1 | . . . . . . . . . . 1 . . . . . . . . . . . . . . . . . Machines Repaired . | . . . . . . . . . . . . . . . . . . . . . . . . . . . . Machines Dismantled . | . . . . . . . . . . . . . . . . . . . . . . . . . . . . Machines Sabotaged . | . . . . . . . . . . . . . . . . . . . . . . . . . . . . Overloaded Fab Kills . | . . . . . . . . . . . . . . . . . . . . . . . . . . . . Hacking | -11 -10 -10 -8 -7 -7 -7 -7 -6 -6 -6 -6 -6 -6 -5 -5 -5 -5 -4 -4 -4 -4 -4 -3 -3 -2 -1 -1 --------- Run | Yrd Mat Sub Mat Fac Low Low Zio Pro Fac Ext Cet Arc Hub Fac Upp Upp War Pro Fac Upp Upp Zhi Pro Res Res Acc Com Machines Accessed 80 | . 8 2 8 19 . . 1 1 2 5 . . 1 6 . . . . 5 . 1 4 . 7 6 4 . Terminals 41 | . 7 . 6 10 . . . 1 . 5 . . 1 1 . . . . 2 . 1 . . 5 2 . . Fabricators 6 | . . . . 2 . . . . . . . . . 1 . . . . . . . . . 1 1 1 . Repair Stations 2 | . 1 . . . . . . . . . . . . . . . . . . . . . . 1 . . . Recycling Units 9 | . . . 1 3 . . . . 1 . . . . 2 . . . . 2 . . . . . . . . Scanalyzers 4 | . . . . 2 . . . . . . . . . . . . . . 1 . . . . . 1 . . Garrison Access 11 | . . . 1 2 . . . . 1 . . . . 2 . . . . . . . . . . 2 3 . Total Hacks 211 | . 21 4 27 52 . . 1 6 3 18 . . 2 14 . . . . 13 . 1 17 . 13 13 6 . Successful 106 | . 7 4 18 23 . . 1 6 . 8 . . . 6 . . . . 6 . 1 17 . 5 4 . . Failed 104 | . 14 . 8 29 . . . . 3 10 . . 2 8 . . . . 7 . . . . 8 9 6 . Catastrophic 18 | . 2 . . 5 . . . . 2 3 . . . . . . . . . . . . . 2 1 3 . Database Lockouts 1 | . . . 1 . . . . . . . . . . . . . . . . . . . . . . . . Manual 110 | . 20 . 18 36 . . . . . 17 2 . . 5 . . . . 2 . . . . 4 5 1 . Terminals 119 | . 20 . 23 27 . . . 6 . 18 . . 2 2 . . . . 4 . 1 . . 9 6 1 . Fabricators 15 | . . . . 6 . . . . . . . . . 4 . . . . . . . . . 3 1 1 . Repair Stations 2 | . 1 . . . . . . . . . . . . . . . . . . . . . . 1 . . . Recycling Units 18 | . . . 1 8 . . . . 1 . . . . 4 . . . . 4 . . . . . . . . Scanalyzers 15 | . . . . 8 . . . . . . . . . . . . . . 5 . . . . . 2 . . Garrison Access 20 | . . . 3 3 . . . . 2 . . . . 4 . . . . . . . . . . 4 4 . Terminal Hacks 45 | . . 4 7 4 . . 1 6 . 1 . . . 1 . . . . . . 1 17 . 2 1 . . Record 15 | . . 3 . . . . . 6 . . . . . . . . . . . . 1 5 . . . . . Part Schematic 6 | . . . . 1 . . 1 . . . . . . . . . . . . . . 4 . . . . . Robot Analysis 5 | . . . 1 . . . . . . . . . . . . . . . . . . 4 . . . . . Prototype ID Bank 5 | . . . 1 . . . . . . . . . . . . . . . . . . 4 . . . . . Branch Access Points 1 | . . . 1 . . . . . . . . . . . . . . . . . . . . . . . . Alert Level 2 | . . . 1 1 . . . . . . . . . . . . . . . . . . . . . . . Unreport Threat 2 | . . . . . . . . . . . . . . 1 . . . . . . . . . 1 . . . Locate Traps 5 | . . . 2 1 . . . . . 1 . . . . . . . . . . . . . . 1 . . Hauler Manifests 1 | . . . 1 . . . . . . . . . . . . . . . . . . . . . . . . Registered Components 1 | . . . . 1 . . . . . . . . . . . . . . . . . . . . . . . Zone Layout 1 | . . . . . . . . . . . . . . . . . . . . . . . . 1 . . . Proto ID Catalog 1 | . . 1 . . . . . . . . . . . . . . . . . . . . . . . . . Fabricator Hacks 6 | . . . . 2 . . . . . . . . . 2 . . . . . . . . . 2 . . . Load Schematic 3 | . . . . 1 . . . . . . . . . 1 . . . . . . . . . 1 . . . Build 3 | . . . . 1 . . . . . . . . . 1 . . . . . . . . . 1 . . . Repair Station Hacks 1 | . 1 . . . . . . . . . . . . . . . . . . . . . . . . . . Scan Component 1 | . 1 . . . . . . . . . . . . . . . . . . . . . . . . . . Recycling Unit Hacks 2 | . . . . . . . . . . . . . . 1 . . . . 1 . . . . . . . . Process 1 | . . . . . . . . . . . . . . 1 . . . . . . . . . . . . . Retrieve Components 1 | . . . . . . . . . . . . . . . . . . . 1 . . . . . . . . Scanalyzer 10 | . . . . 5 . . . . . . . . . . . . . . 4 . . . . . 1 . . Insert Component 1 | . . . . . . . . . . . . . . . . . . . 1 . . . . . . . . Retrieve Study 9 | . . . . 5 . . . . . . . . . . . . . . 3 . . . . . 1 . . Garrison Access Hacks 2 | . . . 1 . . . . . . . . . . . . . . . . . . . . . 1 . . Seal Access 2 | . . . 1 . . . . . . . . . . . . . . . . . . . . . 1 . . Unauthorized Hacks 40 | . 6 . 10 12 . . . . . 7 . . . 2 . . . . 1 . . . . 1 1 . . Terminals 33 | . 6 . 9 8 . . . . . 7 . . . . . . . . 1 . . . . 1 1 . . Track 2 | . . . . 1 . . . . . 1 . . . . . . . . . . . . . . . . . Botnet 8 | . 1 . 2 1 . . . . . 1 . . . . . . . . 1 . . . . 1 1 . . Operators 2 | . . . 1 1 . . . . . . . . . . . . . . . . . . . . . . . Skim 21 | . 5 . 6 5 . . . . . 5 . . . . . . . . . . . . . . . . . Fabricators 2 | . . . . 2 . . . . . . . . . . . . . . . . . . . . . . . Prioritize 1 | . . . . 1 . . . . . . . . . . . . . . . . . . . . . . . Haulers 1 | . . . . 1 . . . . . . . . . . . . . . . . . . . . . . . Repair Stations . | . . . . . . . . . . . . . . . . . . . . . . . . . . . . Recycling Units 4 | . . . 1 2 . . . . . . . . . 1 . . . . . . . . . . . . . Recyclers 1 | . . . . . . . . . . . . . . 1 . . . . . . . . . . . . . Tunnel 3 | . . . 1 2 . . . . . . . . . . . . . . . . . . . . . . . Scanalyzers . | . . . . . . . . . . . . . . . . . . . . . . . . . . . . Garrison Access 1 | . . . . . . . . . . . . . . 1 . . . . . . . . . . . . . Reprogram 1 | . . . . . . . . . . . . . . 1 . . . . . . . . . . . . . Data Cores Recovered 3 | . 1 . 1 . . . . . . . . . . . . . . . . . . . . . 1 . . Used . | . . . . . . . . . . . . . . . . . . . . . . . . . . . . Hacking Detections 69 | . 7 . 7 18 . . . 1 2 5 1 . 1 6 . . . . 5 . . . . 7 5 4 . Full Trace Events 6 | . . . . 2 . . . 1 1 1 . . . . . . . . . . . . . . . 1 . Feedback Events 1 | . . . . . . . . 1 . . . . . . . . . . . . . . . . . . . Corruption 1 | . . . . . . . . 1 . . . . . . . . . . . . . . . . . . . Feedback Blocked . | . . . . . . . . . . . . . . . . . . . . . . . . . . . . Robot Schematics Acquired 4 | . . . . . . . 4 . . . . . . . . . . . . . . . . . . . . Robots Built 4 | . . . . . . . . . . . . . . 2 . . . . . . . . . 2 . . . Authchips 2 | . . . . . . . . . . . . . . 1 . . . . . . . . . 1 . . . Time 170 | . . . . . . . . . . . . . . 102 . . . . . . . . . 68 . . . Total Robot Build Rating 32 | . . . . . . . . . . . . . . 16 . . . . . . . . . 16 . . . Part Schematics Acquired 21 | . . . . 1 . . 16 . . . . . . . . . . . . . . 4 . . . . . Parts Built 2 | . . . . 2 . . . . . . . . . . . . . . . . . . . . . . . Authchips . | . . . . . . . . . . . . . . . . . . . . . . . . . . . . Time 42 | . . . . 42 . . . . . . . . . . . . . . . . . . . . . . . Total Part Build Rating 8 | . . . . 8 . . . . . . . . . . . . . . . . . . . . . . . Part Studies Acquired 9 | . . . . 5 . . . . . . . . . . . . . . 3 . . . . . 1 . . Parts Repaired . | . . . . . . . . . . . . . . . . . . . . . . . . . . . . Time . | . . . . . . . . . . . . . . . . . . . . . . . . . . . . Parts Recycled . | . . . . . . . . . . . . . . . . . . . . . . . . . . . . Recycled Matter 11 | . . . . . . . . . . . . . . 11 . . . . . . . . . . . . . Retrieved Matter . | . . . . . . . . . . . . . . . . . . . . . . . . . . . . Retrieved Components 3 | . . . . . . . . . . . . . . . . . . . 3 . . . . . . . . Parts Scanalyzed 1 | . . . . . . . . . . . . . . . . . . . 1 . . . . . . . . Part Schematics Acquired . | . . . . . . . . . . . . . . . . . . . . . . . . . . . . Parts Damaged . | . . . . . . . . . . . . . . . . . . . . . . . . . . . . Bothacking | -11 -10 -10 -8 -7 -7 -7 -7 -6 -6 -6 -6 -6 -6 -5 -5 -5 -5 -4 -4 -4 -4 -4 -3 -3 -2 -1 -1 ------------ Run | Yrd Mat Sub Mat Fac Low Low Zio Pro Fac Ext Cet Arc Hub Fac Upp Upp War Pro Fac Upp Upp Zhi Pro Res Res Acc Com Used RIF Installer . | . . . . . . . . . . . . . . . . . . . . . . . . . . . . Robots Hacked 1 | . . . . . . . . . . . . 1 . . . . . . . . . . . . . . . Non-combat 1 | . . . . . . . . . . . . 1 . . . . . . . . . . . . . . . Combat . | . . . . . . . . . . . . . . . . . . . . . . . . . . . . Robot Hacks Applied 1 | . . . . . . . . . . . . 1 . . . . . . . . . . . . . . . check_alert 1 | . . . . . . . . . . . . 1 . . . . . . . . . . . . . . . Relay Couplers Released 7 | . . . 2 4 . . . . 1 . . . . . . . . . . . . . . . . . . Machine Destruction 3 | . . . 2 . . . . . 1 . . . . . . . . . . . . . . . . . . Programmers 4 | . . . . 4 . . . . . . . . . . . . . . . . . . . . . . . Fabnet Peak Effective % . | . . . . . . . . . . . . . . . . . . . . . . . . . . . . Robots Rewired 20 | . . . . . . . . . . 14 . . . . 4 . . . . . . . 2 . . . . Allies Hacked 12 | . . . . . . . . . . . . . . 4 . . . . . . . . . . 5 2 1 Hacks Repelled 8 | . . . . . . . . . . . . . . . . . . . . . . . . . 1 7 . Allies | -11 -10 -10 -8 -7 -7 -7 -7 -6 -6 -6 -6 -6 -6 -5 -5 -5 -5 -4 -4 -4 -4 -4 -3 -3 -2 -1 -1 -------- Run | Yrd Mat Sub Mat Fac Low Low Zio Pro Fac Ext Cet Arc Hub Fac Upp Upp War Pro Fac Upp Upp Zhi Pro Res Res Acc Com Total Allies 41 | . . . . . . . 2 . . 20 5 . . 3 4 . . . . . . . 2 2 1 . 2 Largest Group 11 | . . . . . . . 2 1 . 9 11 9 8 8 4 3 1 1 1 . . . 1 3 3 3 1 Highest-Rated Group 760 | . . . . . . . 34 20 . 347 760 493 409 492 120 90 30 30 30 . . . 48 176 176 157 71 Highest-Rated Ally 159 | . . . . . . . 20 20 . 159 159 96 96 96 30 30 30 30 30 . . . 48 64 64 64 71 Total Orders 45 | . . . . . . . . . . 5 1 . 4 2 . . 2 2 4 . . 2 2 . 10 11 . STAY 9 | . . . . . . . . . . . . . . . . . 1 . 1 . . 1 1 . 2 3 . ROAM 1 | . . . . . . . . . . . . . . 1 . . . . . . . . . . . . . FOLLOW 9 | . . . . . . . . . . . . . . . . . 1 . 1 . . 1 1 . 2 3 . AID 4 | . . . . . . . . . . . . . . . . . . 2 2 . . . . . . . . RETURN 22 | . . . . . . . . . . 5 1 . 4 1 . . . . . . . . . . 6 5 . Ally Attacks 1638 | . . . . . . . . 5 31 187 47 27 58 223 53 40 . 15 150 73 . . 55 93 128 363 90 Total Damage 59495 | . . . . . . . . 153 833 4285 2121 754 1953 8324 1344 1443 . 326 5328 2477 . . 1750 3343 6155 13303 5603 Kills 334 | . . . . . . . . 3 6 36 11 4 14 54 9 8 . 7 29 8 . . 13 18 31 60 23 Allies Corrupted 10 | . . . . . . . . . . . . . . 3 . . . . . . . . 1 . 3 1 2 Allies Melted 1 | . . . . . . . . . . . . . . . . . . . . . . . . . . . 1 Borg Created 62 | . . . . . . . . 2 4 7 . 1 . 10 1 4 . . 2 3 . . 2 . 4 8 14 Largest Collective 7 | . . . . . . . . 2 4 6 . 6 . 7 4 6 . . 7 6 . . 7 . 6 7 6 Intel | -11 -10 -10 -8 -7 -7 -7 -7 -6 -6 -6 -6 -6 -6 -5 -5 -5 -5 -4 -4 -4 -4 -4 -3 -3 -2 -1 -1 ------- Run | Yrd Mat Sub Mat Fac Low Low Zio Pro Fac Ext Cet Arc Hub Fac Upp Upp War Pro Fac Upp Upp Zhi Pro Res Res Acc Com Active Infowar (turns) 19324 | 28 77 1756 81 2338 641 795 1433 825 502 1027 . . . 1183 . . 2 555 1144 1083 483 314 959 1017 1140 1559 382 Optics 141 | . . 60 81 . . . . . . . . . . . . . . . . . . . . . . . . Terrain 6173 | . . . . . . . . . . . . . . . . . . . . 879 483 305 796 1017 1124 1559 10 Seismic 18038 | 28 77 1696 . 2338 641 795 1433 825 502 1027 . . . 1183 . . . 555 1144 1081 479 314 958 997 885 971 109 Cloaking 107 | . . . . . . . . . . . . . . . . . 2 . . 105 . . . . . . . Jamming 4097 | . . . . . . . . . . . . . . . . . . . . . . . . 1016 1140 1559 382 Robot Analysis Total 5 | . . . 1 . . . . . . . . . . . . . . . . . . 4 . . . . . Derelict Logs Recovered 13 | . . 2 . . 1 1 3 . . . . . . . 3 . . 1 . 1 1 . . . . . . Drone Launches 22 | . . . . . . . . . . 5 1 . 4 1 . . . . . . . . . . 6 5 . Drone Recoveries 22 | . . . . . . . . . . 5 1 . 4 1 . . . . . . . . . . 6 5 . Exploration | -11 -10 -10 -8 -7 -7 -7 -7 -6 -6 -6 -6 -6 -6 -5 -5 -5 -5 -4 -4 -4 -4 -4 -3 -3 -2 -1 -1 ------------- Run | Yrd Mat Sub Mat Fac Low Low Zio Pro Fac Ext Cet Arc Hub Fac Upp Upp War Pro Fac Upp Upp Zhi Pro Res Res Acc Com Turns Passed 28304 | 97 769 2045 1335 2789 646 795 1433 1198 505 1367 609 699 669 1539 823 788 757 952 1144 1364 483 314 1065 1017 1140 1559 403 Spaces Moved 16595 | 67 513 1087 756 1715 496 544 981 596 175 655 320 191 377 945 536 516 495 658 687 892 343 218 547 613 661 829 182 Core 12 | 1 . 2 . . . 9 . . . . . . . . . . . . . . . . . . . . . Treads . | . . . . . . . . . . . . . . . . . . . . . . . . . . . . Legs . | . . . . . . . . . . . . . . . . . . . . . . . . . . . . Wheels 16583 | 66 513 1085 756 1715 496 535 981 596 175 655 320 191 377 945 536 516 495 658 687 892 343 218 547 613 661 829 182 Hover . | . . . . . . . . . . . . . . . . . . . . . . . . . . . . Flight . | . . . . . . . . . . . . . . . . . . . . . . . . . . . . Fastest Speed 50 | 50 90 105 116 109 115 50 130 145 185 141 141 141 141 132 140 140 140 140 128 128 131 131 131 131 140 140 158 Average Speed 138 | 89 101 145 123 122 120 128 142 166 221 155 141 155 149 142 140 140 140 140 142 131 131 131 131 136 140 146 158 Slowest Speed 850 | 100 115 850 150 130 130 145 145 235 300 300 156 156 156 156 140 140 140 140 173 148 131 131 148 140 140 158 158 Overloaded Moves . | . . . . . . . . . . . . . . . . . . . . . . . . . . . . Propulsion Burnouts . | . . . . . . . . . . . . . . . . . . . . . . . . . . . . Robots Hopped . | . . . . . . . . . . . . . . . . . . . . . . . . . . . . Potential Cave-ins . | . . . . . . . . . . . . . . . . . . . . . . . . . . . . Cave-ins Triggered . | . . . . . . . . . . . . . . . . . . . . . . . . . . . . Exploration Rate (%) 56 | 4 77 61 70 50 61 62 84 61 6 81 87 94 45 27 84 74 69 76 18 89 54 60 92 24 30 24 11 Regions Visited 27 Branch Regions 18 Pre-discovered Areas 17 | . . . 4 5 1 1 2 1 . . . . . . . . . . . . . 3 . . . . . Known Exits Taken 13 | . 1 1 1 1 1 . . 1 1 1 . . 1 1 . . . . . 1 . . 1 . 1 . . Unknown Exits Taken 14 | 1 . . . . . 1 1 . . . 1 1 . . 1 1 1 1 1 . 1 1 . 1 . 1 . Scrap Searched 22 | . . 2 . . 1 2 . 2 . . . . . . 2 1 . 1 . 3 3 . 5 . . . . Spaces Dug 270 | . 8 2 . 26 . . . 44 1 4 . . 6 1 19 33 . . 6 1 3 . . 7 52 32 25 Terrain Destroyed 698 | . 33 4 21 48 4 5 . 85 1 4 . . 6 3 26 38 . . 10 15 3 . 65 43 84 83 117 Melee 41 | . . . . . . . . 1 . 3 . . 6 1 . . . . 5 1 2 . . 7 4 10 1 Projectile 120 | . 19 4 21 48 4 5 . . 1 1 . . . 2 . . . . 5 . 1 . . . . 9 . AOE 537 | . 14 . . . . . . 84 . . . . . . 26 38 . . . 14 . . 65 36 80 64 116 Terrain Rammed . | . . . . . . . . . . . . . . . . . . . . . . . . . . . . Walls Destroyed . | . . . . . . . . . . . . . . . . . . . . . . . . . . . . Machines Disabled . | . . . . . . . . . . . . . . . . . . . . . . . . . . . . Actions | -11 -10 -10 -8 -7 -7 -7 -7 -6 -6 -6 -6 -6 -6 -5 -5 -5 -5 -4 -4 -4 -4 -4 -3 -3 -2 -1 -1 --------- Run | Yrd Mat Sub Mat Fac Low Low Zio Pro Fac Ext Cet Arc Hub Fac Upp Upp War Pro Fac Upp Upp Zhi Pro Res Res Acc Com Total 20720 | 85 621 1441 1032 2182 525 600 1016 767 283 954 472 584 473 1103 596 564 559 687 798 1048 367 240 875 756 828 1031 233 Wait 2321 | . 23 228 133 242 7 . 11 119 82 106 107 378 81 53 28 25 42 23 23 105 10 1 271 88 86 49 . Move 16568 | 66 512 1086 755 1714 495 543 980 595 174 654 319 190 376 944 535 515 494 657 686 891 342 217 546 612 660 828 182 Hop . | . . . . . . . . . . . . . . . . . . . . . . . . . . . . Pick Up 212 | 4 15 19 26 23 4 19 5 10 6 9 11 . 1 19 . 1 3 . 11 5 . 2 1 4 6 8 . Fast Attach 94 | 7 1 3 6 9 . 10 6 . 1 4 6 2 1 5 . 4 6 2 4 1 2 7 2 2 1 2 . Attach 77 | . 1 10 9 15 2 1 1 4 2 2 1 . . 4 . . 1 . 4 3 . . . 4 2 5 6 Detach 24 | . . 3 4 3 . 1 3 1 . . . . . 1 . 1 1 . 1 . . . . 3 . . 2 Swap 338 | . 12 25 8 20 5 . 1 4 3 18 9 3 4 33 4 6 2 3 13 24 3 1 15 12 40 61 9 Drop 209 | . 4 14 23 22 3 8 8 7 6 9 15 3 4 23 . 3 9 2 12 2 2 8 3 6 6 7 . Fire 449 | 8 53 53 68 127 9 15 . 19 4 7 1 . . 2 2 2 1 . 17 5 3 . 7 4 8 23 11 Melee 156 | . . . . . . 3 1 2 . 15 2 6 6 9 3 3 . . 22 9 3 4 . 21 5 36 6 Ram . | . . . . . . . . . . . . . . . . . . . . . . . . . . . . Kick . | . . . . . . . . . . . . . . . . . . . . . . . . . . . . Crush . | . . . . . . . . . . . . . . . . . . . . . . . . . . . . Escape Stasis 15 | . . . . 7 . . . . . . . . . . . . . . . . . . . . 8 . . Rewire 179 | . . . . . . . . . 1 123 . 1 . . 22 . . . 2 . . . 28 . . 2 . Trap 6 | . . . . . . . . 4 . . . . . . . . . . . . 2 . . . . . . Miscellaneous 72 | . . . . . . . . 2 4 7 1 1 . 10 2 4 . . 3 3 . . 2 . 6 10 17 Route ------- -11/Scrapyard -10/Materials (discovered 5 exits: *Mat x2 / *Min x2 / *Sub) -10/Subcaves (discovered 3 exits: *Mat x2 / Rec) -8/Materials (discovered 5 exits: *Fac x3 / *Sto x2) -7/Factory (discovered 6 exits: *Fac x4 / *Low x2) -7/Lower Caves -7/Lower Caves (discovered 2 exits: Fac / *Zio) -7/Zion -6/Proximity Caves -6/Factory (discovered 5 exits: *Fac x3 / *Ext x2) -6/Extension (discovered 2 exits: *Fac / *Cet) -6/Cetus (discovered 2 exits: *Fac / [*Arc]) -6/Archives (discovered 3 exits: *Fac / *Hub x2) -6/Hub_04(d) (discovered 2 exits: *Fac x2) -5/Factory (discovered 2 exits: *Fac / *Upp) -5/Upper Caves -5/Upper Caves -5/Warlord -4/Proximity Caves -4/Factory (discovered 5 exits: *Res x3 / [*Upp] / Arm) -4/Upper Caves -4/Upper Caves (discovered 2 exits: *Res / *Zhi) -4/Zhirov -3/Proximity Caves -3/Research (discovered 2 exits: *Res / [*Tes]) -2/Research (discovered 3 exits: *Acc x3) -1/Access -1/Command History --------- Turn | Location | Event 57 | -11/Scrapyard | Discovered new exit (range 15) 98 | -11/Scrapyard | Entered Materials 267 | -10/Materials | Discovered new exit (range 16) 306 | -10/Materials | Build established: Mutant 389 | -10/Materials | Identified exit to Mines 447 | -10/Materials | Learned 2 Mines zone layouts 530 | -10/Materials | Identified exit to Subcaves 571 | -10/Materials | Learned Storage emergency access door positions 631 | -10/Materials | Learned 4 Subcaves zone layouts 677 | -10/Materials | Identified exit to Materials 800 | -10/Materials | Discovered exit to Materials (range 9) 867 | -10/Materials | Entered Subcaves 868 | -10/Subcaves | Identified exit to Materials 868 | -10/Subcaves | Identified exit to Recycling 948 | -10/Subcaves | Lost 4 parts (2n1u1w) 1701 | -10/Subcaves | Visited 4L-MR0's lab 1714 | -10/Subcaves | Found Prototype Special Melee Weapon 1721 | -10/Subcaves | Found Powered Cannon 1818 | -10/Subcaves | Learned Materials interactive machine intel 1932 | -10/Subcaves | Visited Clippyterm 1934 | -10/Subcaves | Build established: Scavenger-Mutant 1936 | -10/Subcaves | Learned 40 Factory zone layouts 2125 | -10/Subcaves | Core integrity fell below 50% 2562 | -10/Subcaves | Learned location of 1 exit from Materials 2565 | -10/Subcaves | A swath of the cavern ceiling suddenly collapsed 2868 | -10/Subcaves | Core integrity fell below 20% 2912 | -10/Subcaves | Entered Materials 2912 | -8/Materials | Evolved 4 slots: Propulsion x1, Utility x1, Weapon x2 2913 | -8/Materials | Identified exit to Storage 2914 | -8/Materials | Loaded intel: 18 interactive machine locations 2936 | -8/Materials | Central database locked down 2954 | -8/Materials | Attached Powered Cannon, gained temporary slot: Power 3301 | -8/Materials | Garrison activated, responded to threat 3715 | -8/Materials | Build established: Scavenger-Tank 3854 | -8/Materials | Discovered new exit (range 7) 3941 | -8/Materials | Learned location of 1 exit from Lower Caves 3984 | -8/Materials | Learned location of 1 exit from Extension 4036 | -8/Materials | Learned 4 Recycling zone layouts 4045 | -8/Materials | Learned location of 1 exit from Storage 4046 | -8/Materials | Learned location of Storage (-8) 4047 | -8/Materials | Identified exit to Factory 4048 | -8/Materials | Learned location of 1 exit from Extension 4055 | -8/Materials | Learned location of Extension (-6) 4070 | -8/Materials | Learned location of 1 exit from Recycling 4096 | -8/Materials | Learned Factory trap positions 4247 | -8/Materials | Entered Factory 4247 | -7/Factory | Evolved 2 slots: Utility x1, Weapon x1 4248 | -7/Factory | Identified exit to Factory 4248 | -7/Factory | Identified exit to Lower Caves 4249 | -7/Factory | Loaded intel: 112 trap records 4326 | -7/Factory | Discovered exit to Factory (range 15) 4406 | -7/Factory | Build established: Tank 4887 | -7/Factory | Build established: Scavenger-Tank 4913 | -7/Factory | Fabricated Hyb. Deuterium Engine? 5031 | -7/Factory | Lost 4 parts (1n2u1w) 5050 | -7/Factory | Destroyed 7 combat bots 5356 | -7/Factory | Build established: Tank 5378 | -7/Factory | Garrison activated, responded to threat 5971 | -7/Factory | Discovered exit to Factory (range 15) 6255 | -7/Factory | Learned Extension non-interactive machine intel 6289 | -7/Factory | Learned 2 Proximity Caves zone layouts 6325 | -7/Factory | Learned location of 1 exit from Hub_04(d) 6326 | -7/Factory | Learned Extension emergency access door positions 6327 | -7/Factory | Learned location of Warlord (-5) 6339 | -7/Factory | Learned 4 Factory zone layouts 6652 | -7/Factory | Lost 3 parts (2n1w) 6718 | -7/Factory | Garrison activated, responded to threat 7036 | -7/Factory | Entered Lower Caves 7037 | -7/Lower Caves | Identified exit to Lower Caves 7110 | -7/Lower Caves | Core integrity fell below 50% 7682 | -7/Lower Caves | Entered another Lower Caves area 7799 | -7/Lower Caves | Spotted B-75 Beast 7838 | -7/Lower Caves | Destroyed B-75 Beast 7867 | -7/Lower Caves | Lost 4 parts (3n1u) 8093 | -7/Lower Caves | Encountered a Warlord checkpoint 8416 | -7/Lower Caves | Discovered new exit (range 15) 8477 | -7/Lower Caves | Entered Zion 8504 | -7/Zion | Received a hallucinogenic algorithm 8532 | -7/Zion | Discovered new exit (range 16) 8539 | -7/Zion | Given A8's code to call for help 8572 | -7/Zion | System corruption cleaned by Quarantine Array 9006 | -7/Zion | Gained Derelict followers 9260 | -7/Zion | Met Imprinter 9324 | -7/Zion | Given the Hacking Drone Bay 9324 | -7/Zion | Found Prototype Device 9324 | -7/Zion | Identified Hacking Drone Bay 9354 | -7/Zion | Learned 8 Factory zone layouts 9910 | -7/Zion | Entered Proximity Caves 9910 | -6/Proximity Caves | Accompanied by 2 allies 9912 | -6/Proximity Caves | Spotter reported a threat 9913 | -6/Proximity Caves | Spotter reported a threat 10553 | -6/Proximity Caves | Spotted B-75 Beast 10754 | -6/Proximity Caves | Identified 1B-0RG's Assimilator 10757 | -6/Proximity Caves | Destroyed 12 combat bots 10763 | -6/Proximity Caves | Attracted the attention of an 0b10 base 10766 | -6/Proximity Caves | Lost 3 parts (1n2u) 10780 | -6/Proximity Caves | Assimilating Slayer 5a into Collective. 10783 | -6/Proximity Caves | Assimilating Sentinel 5a into Collective. 10938 | -6/Proximity Caves | Learned location of 1 exit from Factory 10938 | -6/Proximity Caves | Learned Factory stockpile data 11055 | -6/Proximity Caves | Build established: Mutant 11108 | -6/Proximity Caves | Entered Factory 11108 | -6/Factory | Accompanied by 2 allies 11108 | -6/Factory | Evolved 2 slots: Power x1, Weapon x1 11109 | -6/Factory | Identified exit to Factory 11110 | -6/Factory | Identified exit to Extension 11429 | -6/Factory | Assimilating Fighter 5a into Collective. 11434 | -6/Factory | Assimilating Soldier 5a into Collective. 11448 | -6/Factory | Assimilating Soldier 5b into Collective. 11458 | -6/Factory | Search patrols dispatched 11499 | -6/Factory | Assimilating Virus 5a into Collective. 11565 | -6/Factory | Discovered exit to Extension (range 17) 11613 | -6/Factory | Entered Extension 11613 | -6/Extension | Accompanied by 2 allies 11614 | -6/Extension | Identified exit to Cetus 11616 | -6/Extension | Loaded intel: 21 non-interactive machine locations 11826 | -6/Extension | Assimilating Soldier 5c into Collective. 11948 | -6/Extension | Rescued a captive Derelict 12033 | -6/Extension | Rescued a captive Derelict 12038 | -6/Extension | Rescued a captive Derelict 12051 | -6/Extension | Assimilating Guardian 5a into Collective. 12064 | -6/Extension | Rescued a captive Derelict 12190 | -6/Extension | Assimilating 7Z-IE6(h) into Collective. 12305 | -6/Extension | Lost 3 allies 12318 | -6/Extension | Assimilating Guardian 5b into Collective. 12321 | -6/Extension | Assimilating Guardian 5c into Collective. 12363 | -6/Extension | Lost 3 allies 12413 | -6/Extension | Disrupted transfer network 12466 | -6/Extension | Rescued a captive Derelict 12529 | -6/Extension | Spotted B-75 Beast 12559 | -6/Extension | Allies destroyed B-75 Beast 12565 | -6/Extension | Allies destroyed B-75 Beast 12596 | -6/Extension | Lost 3 allies 12624 | -6/Extension | Build established: Commander-Mutant 12625 | -6/Extension | Assimilating Guardian 5d into Collective. 12640 | -6/Extension | Rescued A7 12813 | -6/Extension | Assimilating Slayer 5b into Collective. 12823 | -6/Extension | Energy Cycler disabled 12824 | -6/Extension | Rescued a captive Derelict 12854 | -6/Extension | Lost 3 allies 12980 | -6/Extension | Entered Cetus 12980 | -6/Cetus | Accompanied by 13 allies (A7) 12985 | -6/Cetus | Acquired a Cetus Manufacturing Module code from A7 13014 | -6/Cetus | Spotted Cetus Guard 13014 | -6/Cetus | Spotted Cetus Guard 13017 | -6/Cetus | Spotted Cetus Guard 13017 | -6/Cetus | Spotted Cetus Guard 13020 | -6/Cetus | Allies destroyed Cetus Guard 13022 | -6/Cetus | Allies destroyed Cetus Guard 13032 | -6/Cetus | Allies destroyed Cetus Guard 13035 | -6/Cetus | Allies destroyed Cetus Guard 13141 | -6/Cetus | Started Cetus Manufacturing Module 13166 | -6/Cetus | Manufactured an Enhanced Grunt 13191 | -6/Cetus | Manufactured an Enhanced Grunt 13216 | -6/Cetus | Manufactured an Enhanced Grunt 13228 | -6/Cetus | Escorted A7 to Cetus Mainframe 13241 | -6/Cetus | Manufactured an Enhanced Grunt 13266 | -6/Cetus | Manufactured an Enhanced Grunt 13273 | -6/Cetus | Discovered new exit (range 15) 13333 | -6/Cetus | Spotted Cetus Guard 13333 | -6/Cetus | Spotted Cetus Guard 13335 | -6/Cetus | Allies destroyed Cetus Guard 13336 | -6/Cetus | Spotted Cetus Guard 13342 | -6/Cetus | Allies destroyed Cetus Guard 13344 | -6/Cetus | Spotted Cetus Guard 13346 | -6/Cetus | Allies destroyed Cetus Guard 13355 | -6/Cetus | Allies destroyed Cetus Guard 13356 | -6/Cetus | Discovered exit to Factory (range 16) 13364 | -6/Cetus | Met Revision 17 13411 | -6/Cetus | Found Prototype Device 13411 | -6/Cetus | Identified Exp. Thermal Shield 13502 | -6/Cetus | Murdered A7 13506 | -6/Cetus | Extracted ID and sensor layout for unrecognized location from A7's data core 13589 | -6/Cetus | Entered Archives 13589 | -6/Archives | Accompanied by 14 allies 13633 | -6/Archives | Discovered exit to Factory (range 15) 13703 | -6/Archives | Discovered new exit (range 16) 13714 | -6/Archives | Discovered new exit (range 15) 13739 | -6/Archives | Assimilating Enhanced Grunt into Collective. 14288 | -6/Archives | Entered Hub_04(d) 14288 | -6/Hub_04(d) | Accompanied by 14 allies 14383 | -6/Hub_04(d) | Discovered exit to Factory (range 9) 14957 | -6/Hub_04(d) | Entered Factory 14957 | -5/Factory | Accompanied by 13 allies 14957 | -5/Factory | Evolved 2 slots: Propulsion x1, Utility x1 15281 | -5/Factory | Assimilating Sage 6a into Collective. 15431 | -5/Factory | Discovered new exit (range 11) 15573 | -5/Factory | Identified exit to Upper Caves 15723 | -5/Factory | Discovered new exit (range 11) 15961 | -5/Factory | Fabricated Y-72 Warden? 16106 | -5/Factory | Assimilating Warden 6b into Collective. 16157 | -5/Factory | First assault squad dispatched 16214 | -5/Factory | Garrison activated, responded to threat 16218 | -5/Factory | Assimilating Destroyer 6a into Collective. 16251 | -5/Factory | Assimilating Smith 6a into Collective. 16290 | -5/Factory | Cargo convoy interrupted 16299 | -5/Factory | Assimilating Sage 6b into Collective. 16305 | -5/Factory | Assimilating Sage 6c into Collective. 16308 | -5/Factory | Assimilating Sage 6d into Collective. 16312 | -5/Factory | Assimilating Disruptor 6a into Collective. 16318 | -5/Factory | Assimilating Slayer 6a into Collective. 16324 | -5/Factory | Assimilating Disruptor 6b into Collective. 16338 | -5/Factory | Found Prototype Launcher 16339 | -5/Factory | Identified Ragnarok Missile Launcher 16342 | -5/Factory | Found Ragnarok Missile Launcher 16351 | -5/Factory | Found Prototype Device 16351 | -5/Factory | Identified Exp. Actuator Array 16361 | -5/Factory | Lost 11 allies 16496 | -5/Factory | Entered Upper Caves 16496 | -5/Upper Caves | Accompanied by 4 allies 16515 | -5/Upper Caves | Build established: Mutant 16517 | -5/Upper Caves | Attracted the attention of an 0b10 checkpoint 16662 | -5/Upper Caves | Learned Factory garrison access intel 16859 | -5/Upper Caves | Attacked by a delusional Derelict stockpiling Unaware 16865 | -5/Upper Caves | Assimilating 55-AN3(M) into Collective. 17012 | -5/Upper Caves | Learned location of 1 exit from Factory 17193 | -5/Upper Caves | Discovered new exit (range 11) 17319 | -5/Upper Caves | Entered another Upper Caves area 17319 | -5/Upper Caves | Accompanied by 7 allies 17456 | -5/Upper Caves | Assimilating Soldier 6a into Collective. 17583 | -5/Upper Caves | Assimilating Sage 6e into Collective. 17602 | -5/Upper Caves | Assimilating Fighter 6d into Collective. 17783 | -5/Upper Caves | Build established: Scavenger-Mutant 17820 | -5/Upper Caves | Assimilating Slayer 6b into Collective. 17852 | -5/Upper Caves | Discovered new exit (range 14) 17948 | -5/Upper Caves | Attracted the attention of an 0b10 checkpoint 18107 | -5/Upper Caves | Entered Warlord 18107 | -5/Warlord | Accompanied by 7 allies 18148 | -5/Warlord | Discovered new exit (range 9) 18208 | -5/Warlord | System corruption cleaned by Quarantine Array 18291 | -5/Warlord | Found Prototype Device 18291 | -5/Warlord | Identified Exp. Cloaking Device 18299 | -5/Warlord | Found Prototype Device 18299 | -5/Warlord | Identified Thermal Barrier 18311 | -5/Warlord | Found Prototype Reactor 18318 | -5/Warlord | Found Prototype Processor 18318 | -5/Warlord | Identified Exp. Armor Integrity Analyzer 18864 | -5/Warlord | Entered Proximity Caves 18864 | -4/Proximity Caves | Accompanied by 7 allies 18912 | -4/Proximity Caves | Build established: Mutant 19036 | -4/Proximity Caves | Spotter reported a threat 19226 | -4/Proximity Caves | Learned Research terminal intel 19348 | -4/Proximity Caves | Discovered new exit (range 5) 19562 | -4/Proximity Caves | Build established: Scavenger-Mutant 19816 | -4/Proximity Caves | Entered Factory 19816 | -4/Factory | Accompanied by 7 allies 19816 | -4/Factory | Evolved 2 slots: Power x1, Utility x1 19817 | -4/Factory | Identified exit to Armory 19817 | -4/Factory | Identified Vortex Chain Reactor 19818 | -4/Factory | Identified exit to Research 19819 | -4/Factory | Loaded intel: 4 garrison access locations 19860 | -4/Factory | Discovered exit to Research (range 15) 20043 | -4/Factory | Assimilating Sage 7a into Collective. 20119 | -4/Factory | Build established: Mutant 20735 | -4/Factory | Discovered new exit (range 19) 20782 | -4/Factory | Discovered exit to Research (range 13) 20785 | -4/Factory | Assimilating Assassin 7a into Collective. 20960 | -4/Factory | Entered Upper Caves 20960 | -4/Upper Caves | Accompanied by 7 allies 21007 | -4/Upper Caves | Build established: Scientist-Mutant 21069 | -4/Upper Caves | Assimilating Enforcer 7a into Collective. 21077 | -4/Upper Caves | Assimilating Veteran 7a into Collective. 21100 | -4/Upper Caves | Lost 4 allies 21113 | -4/Upper Caves | Found Imp. Powered Armor 21619 | -4/Upper Caves | Assimilating Assassin 7b into Collective. 21713 | -4/Upper Caves | Identified exit to Upper Caves 21824 | -4/Upper Caves | Spotted B-86 Titan 21841 | -4/Upper Caves | Allies destroyed B-86 Titan 22319 | -4/Upper Caves | Build established: Mutant 22324 | -4/Upper Caves | Entered another Upper Caves area 22324 | -4/Upper Caves | Accompanied by 6 allies 22349 | -4/Upper Caves | Discovered exit to Research (range 22) 22462 | -4/Upper Caves | Learned Research security intel 22717 | -4/Upper Caves | Discovered new exit (range 17) 22807 | -4/Upper Caves | Entered Zhirov 22807 | -4/Zhirov | Accompanied by 6 allies 22807 | -4/Zhirov | Discovered new exit (range 3) 22831 | -4/Zhirov | Met Zhirov 22856 | -4/Zhirov | Learned location of Quarantine (-2) 22856 | -4/Zhirov | Learned location of Testing (-3) 22856 | -4/Zhirov | Learned location of Command (-1) 22868 | -4/Zhirov | Zhirov requested help retrieving the SGEMP Prototype 22896 | -4/Zhirov | Found Alien Artifact 22896 | -4/Zhirov | Identified Integrated Dissipator 22896 | -4/Zhirov | Installed Integrated Dissipator, increased core heat dissipation (+20) 22915 | -4/Zhirov | Found Alien Artifact 23121 | -4/Zhirov | Entered Proximity Caves 23121 | -3/Proximity Caves | Accompanied by 6 allies 23288 | -3/Proximity Caves | Spotted B-86 Titan 23305 | -3/Proximity Caves | Allies destroyed B-86 Titan 23606 | -3/Proximity Caves | Build established: Scientist-Mutant 24051 | -3/Proximity Caves | Discovered exit to Research (range 17) 24095 | -3/Proximity Caves | Assimilating Champion 8a into Collective. 24127 | -3/Proximity Caves | Build established: Mutant 24137 | -3/Proximity Caves | Assimilating Warden 8a into Collective. 24186 | -3/Proximity Caves | Entered Research 24186 | -3/Research | Accompanied by 8 allies 24186 | -3/Research | Evolved 2 slots: Utility x2 24188 | -3/Research | Loaded intel: 23 terminal locations 24386 | -3/Research | Revision forces began assault on 0b10 24406 | -3/Research | Spotted B-86 Titan 24432 | -3/Research | Allies destroyed B-86 Titan 24506 | -3/Research | Fabricated Y-72 Warden (x2) 24562 | -3/Research | Met up with Revision 17++ 24827 | -3/Research | Discovered new exit (range 22) 24886 | -3/Research | Research terminal network offline 24989 | -3/Research | Discovered new exit (range 17) 25203 | -3/Research | Entered another Research area 25203 | -2/Research | Accompanied by 10 allies 25203 | -2/Research | Evolved 2 slots: Utility x2 25299 | -2/Research | Assimilating Warden 8b into Collective. 25873 | -2/Research | Assimilating Master 9a into Collective. 26123 | -2/Research | Identified exit to Access 26161 | -2/Research | Assimilating Master 9b into Collective. 26203 | -2/Research | First assault squad dispatched 26238 | -2/Research | Assimilating Warden 9a into Collective. 26343 | -2/Research | Entered Access 26343 | -1/Access | Accompanied by 8 allies 26343 | -1/Access | Evolved 2 slots: Utility x2 26390 | -1/Access | Assimilating Master 10a into Collective. 26653 | -1/Access | Spotted B-99 Colossus 26674 | -1/Access | Allies destroyed B-99 Colossus 26678 | -1/Access | Found Hvy. Reflective Plating 26683 | -1/Access | Found Hvy. Insulated Plating 26979 | -1/Access | Assimilating Master 10b into Collective. 27343 | -1/Access | First assault squad dispatched 27346 | -1/Access | Assimilating Master 10c into Collective. 27358 | -1/Access | Assimilating Terminator 10a into Collective. 27364 | -1/Access | Assimilating Terminator 10b into Collective. 27406 | -1/Access | Spotted B-99 Colossus 27439 | -1/Access | Allies destroyed B-99 Colossus 27453 | -1/Access | Found Hvy. Insulated Plating 27502 | -1/Access | Spotted B-99 Colossus 27503 | -1/Access | Discovered new exit (range 14) 27504 | -1/Access | Assimilating Terminator 10c into Collective. 27545 | -1/Access | Assimilating Terminator 10d into Collective. 27576 | -1/Access | Assimilating Terminator 10e into Collective. 27640 | -1/Access | System corruption reached 10% 27902 | -1/Access | Entered Command 27902 | -1/Command | Accompanied by 3 allies 27941 | -1/Command | High security lockdown imminent 28002 | -1/Command | Assimilating Enforcer 10a into Collective. 28017 | -1/Command | Assimilating Enforcer 10b into Collective. 28021 | -1/Command | High security lockdown engaged 28021 | -1/Command | Assimilating Champion 10a into Collective. 28026 | -1/Command | Assimilating Champion 10b into Collective. 28031 | -1/Command | Assimilating Enforcer 10c into Collective. 28034 | -1/Command | Assimilating Champion 10c into Collective. 28040 | -1/Command | Assimilating Master 10d into Collective. 28045 | -1/Command | Assimilating Master 10e into Collective. 28053 | -1/Command | Assimilating Enforcer 10d into Collective. 28061 | -1/Command | Assimilating Enforcer 10e into Collective. 28063 | -1/Command | Lost 6 allies 28092 | -1/Command | Spotted B-99 Colossus 28096 | -1/Command | Spotted Striker 28118 | -1/Command | Allies destroyed Striker 28181 | -1/Command | Spotted Investigator 28188 | -1/Command | Destroyed Investigator 28188 | -1/Command | Spotted Striker 28188 | -1/Command | Spotted Executioner 28190 | -1/Command | Allies destroyed Striker 28205 | -1/Command | Allies destroyed Executioner 28217 | -1/Command | Destroyed 10 combat bots 28230 | -1/Command | Assimilating Enforcer 10f into Collective. 28233 | -1/Command | Assimilating Artificer 10a into Collective. 28298 | -1/Command | Assimilating Dissector 10a into Collective. 28301 | -1/Command | Assimilating Dissector 10b into Collective. 28303 | -1/Command | Spotted Striker 28303 | -1/Command | Spotted Executioner 28304 | -1/Command | Identified Transdimensional Reconstructor 28304 | -1/Command | Failed to warp due to unstable space 28305 | -1/Command | Core integrity fell below 50% 28305 | -1/Command | Self-destructed Last Messages --------------- 28302_ Executioner unfolds itself. 28302_ P-80 Master unfolds itself. 28302_ M-36 Artificer unfolds itself. 28302_ Penetrated by Slug. 28302_ Slug penetrates P-80 Master. 28302_ Penetrated by Slug. 28303_ Borg Enforcer 10f knocked back. 28303_ Borg Dissector 10b suffers critical hit (Blast). 28303_ Borg Dissector 10b destroyed. 28303_ Penetrated by Slug. 28303_ Centrium Wheel+ destroyed. 28304_ Borg Enforcer 10f Adv. Heat Sink blown off. 28304_ E-15 Imp destroyed. 28304_ Identified Transdimensional Reconstructor. 28304_ Warp failed due to unstable space. 28304_ Slug penetrates Wall. 28304_ Slug penetrates C-45 Heavy ARC. 28304_ Arm. Huge Wheel destroyed. 28305_ Penetrated by Slug. 28305_ P-80 Master resets B-74 Champion, system corruption cleaned. Map ----- +----------------------------------------------------+ | ?????????????????????????????????????????????????? | | ?????????????????????????????????????????????????# | | ?????????????????????????????????????????????????# | | ?????????????????????????????????????????????????# | | ?????????????????????????????????????????????????# | | ?????????????????????????????????????????????????# | | ?????????????????????????????????????????????????# | | ???????????????????????######????????????????????# | | ???????????????????????# # ?????????????????# | | ???????????????????????# # ?????????????????# | | ???????????????????????# lbb# ??????????????#### | | ???????????????????????# lbb# #????????????# # | | ???????????????????????? bbb? h#????????????# | | ???????????????????????? b ? hh?????????????# | | ????????????????????????#lb#?# h#????#????????# # | | ????????????????????????#ll###hh#??? #????????# ## | | ????????????????????????#bb# #hh### #????????# | | ???????????????????#????#*[# hh[ s#?????#### | | ???????????????????# ???#%l!# h %s#?????# | | ???????????????????# ###!g= s[ s #?????#! =# | | ???????????????????# # !%= h= s=#?????# = ## | | ??????????????????##++ s####### ## # | | ??????????????????# d x=!=%] s*s=m + | | ??????????????????# K%%/%*% %s + | | ??????????????????# =E]*/% + | | ??????????????????# Cp!@== * | | ??????????????????##++##m!]/ ############# | | ???????????????????# # # #gg#??????????# # | | ???????????????????# ?# # # #??????????# | | ???????????????????# ?# # ### #??????????# # | | ???????????????????#??# # #?# #??????????##### # | | ??????????????????????### #?# #??????????????### | | ????????????????????????# #?# ?????????????????# | | ????????????????????????#pp#?# ?????????????????# | | ???????????????????????? ppp? ?????????????????# | | ???????????????????????? pp ? ???????????????### | | ???????????????????????? ppp? ???????????????# | | ???????????????????????? ppp? ???????????????# | | ???????????????????????? ppp? ???????????????# | | ???????????????????????? pp???????????????????# | | ?????????????????????????#p#???????????????????# | | ???????????????????????????????????????????????# | | ???????????????????????????????????????????????### | | ?????????????????????????????????????????????????? | | ?????????????????????????????????????????????????? | | ?????????????????????????????????????????????????? | | ?????????????????????????????????????????????????? | | ?????????????????????????????????????????????????? | | ?????????????????????????????????????????????????? | | ?????????????????????????????????????????????????? | +----------------------------------------------------+ Best States ------------- Heat Dissipation 103 Coolant Potential 50 Energy Generation 62 Energy Capacity 1400 Matter Stores 730 Matter Capacity 900 Sight Range 21 Terrain Scan Range 24 Terrain Scan Density 210 Jamming Range 14 Cloak Strength 4 Armor Coverage 1675 Resistance: TH 50 Resistance: EM 20 Utility Shielding 90 Weapon Shielding 66 Point Defense Rating 240 Phase Shifting 15 Evasion (%) 55 Offensive Hacking 10 Authchip Count 2 Item Schematics ----------------- Hyb. Deuterium Engine | -7/Factory | Hacked Battle Cannon | -7/Zion | Free Hvy. Flak Cannon | -7/Zion | Archive Matter Filter | -7/Zion | Archive Hvy. Plasma Cannon | -7/Zion | Archive Weapon Cycler | -7/Zion | Archive Adv. Cooling System | -7/Zion | Archive Magnetic Acceleration Cannon | -7/Zion | Archive Imp. Shield Generator | -7/Zion | Archive Recalibrator | -7/Zion | Archive Jamming Amplifier | -7/Zion | Archive Imp. Corruption Screen | -7/Zion | Archive Great Axe | -7/Zion | Archive Adv. Melee Analysis Suite | -7/Zion | Archive Kinecellerator | -7/Zion | Archive Proton Cannon | -7/Zion | Archive Arc Projector | -7/Zion | Archive Assault Drone Bay | -4/Zhirov | Free Exp. Heat Sink | -4/Zhirov | Free Exp. Optical Array | -4/Zhirov | Free Imp. Arc Thrower | -4/Zhirov | Free Robot Schematics ------------------ S-27 Virus | -7/Zion | Archive A-02 Transporter | -7/Zion | Archive Y-54 Guardian | -7/Zion | Archive Y-72 Warden | -7/Zion | Archive Fabricated ------------ Hyb. Deuterium Engine | x2 | -7/Factory Y-72 Warden | x2 | -5/Factory | Authchip Y-72 Warden | x2 | -3/Research | Authchip Repaired ---------- Nothing Studied --------- Wheel | -7/Factory | Hacked Hyb. Deuterium Engine | -7/Factory | Hacked Imp. Deuterium Engine | -7/Factory | Hacked Rnf. Deuterium Engine | -7/Factory | Hacked Hvy. Missile Launcher | -7/Factory | Hacked Centrium Wheel | -4/Factory | Hacked Arm. Wheel | -4/Factory | Hacked Lrn. Proton Cannon | -4/Factory | Hacked Quantum Reactor | -2/Research | Hacked Alien Tech Used ----------------- Integrated Dissipator Transdimensional Reconstructor Achievements -------------- Be The Sidekick Challenges ------------ None Game ------ Seed MolecularAluminumTracker Manual? 0 Play Time 05:35:16 Cumulative 385.0 hours Start 2026.03.31 @ 14:02:11 End 2026.04.01 @ 10:25:37 Sessions 5 Manual Loads 0 Difficulty Rogue Special Mode None Game No. 131 Rogue 130 Adventurer 1 Explorer 0 Win Type - Total 15 Types 13/0/2/0/0/0/0/0/0/0 Lore% 79 Gallery% 73 Achievement% 58 Wizard Run 0 Options --------- Layout 0 ASCII 1 Keyboard 1 Movement Vi Keybinds 0 Fullscreen 1 Font 36/Terminus++ Map View 76x50 Zoom Use 0% Tactical HUD 1 Map Filters NONE Filters NONE Steam 0 RUN: 5d8e6f0b-7073-4b73-aef0-cb75b5ce2202